[Event "Titled Tuesday Blitz June 13 Early 2023"]
[White "Shukhman, Anna"]
[Black "Floresvillar Gonzalez, Luis Migu"]
[WhiteFideId "54180058"]
[BlackFideId "5100542"]
[WhiteElo "2235"]
[BlackElo "2040"]
[Result "1-0"]
[Round "1"]
[TimeControl "180+2"]
[Date "2023.06.13"]
[WhiteClock "0:00:12"]
[BlackClock "0:00:14"]
[Board "208"]

1. e4 {[%clk 0:02:56]}  e6 {[%clk 0:02:58]} 2. d4 {[%clk 0:02:56]}  d5 {[%clk 0:02:58]} 3. Nc3 {[%clk 0:02:56]}  dxe4 {[%clk 0:02:56]} 4. Nxe4 {[%clk 0:02:56]}  Nd7 {[%clk 0:02:57]} 5. Bd3 {[%clk 0:02:55]}  Ngf6 {[%clk 0:02:57]} 6. Qe2 {[%clk 0:02:55]}  Be7 {[%clk 0:02:55]} 7. Nf3 {[%clk 0:02:49]}  Nxe4 {[%clk 0:02:54]} 8. Qxe4 {[%clk 0:02:50]}  Nf6 {[%clk 0:02:52]} 9. Qf4 {[%clk 0:02:48]}  Qd6 {[%clk 0:02:44]} 10. Ne5 {[%clk 0:02:45]}  c5 {[%clk 0:02:39]} 11. dxc5 {[%clk 0:02:38]}  Qxc5 {[%clk 0:02:39]} 12. Be3 {[%clk 0:02:37]}  Qb4+ {[%clk 0:02:38]} 13. Qxb4 {[%clk 0:02:37]}  Bxb4+ {[%clk 0:02:37]} 14. c3 {[%clk 0:02:38]}  Bd6 {[%clk 0:02:36]} 15. Nc4 {[%clk 0:02:38]}  Bc7 {[%clk 0:02:35]} 16. O-O-O {[%clk 0:02:37]}  Nd5 {[%clk 0:02:31]} 17. Bd4 {[%clk 0:02:35]}  O-O {[%clk 0:02:28]} 18. Be4 {[%clk 0:02:32]}  b5 {[%clk 0:02:23]} 19. Bxd5 {[%clk 0:02:28]}  exd5 {[%clk 0:02:21]} 20. Ne3 {[%clk 0:02:28]}  Be6 {[%clk 0:02:18]} 21. g3 {[%clk 0:02:28]}  Bb6 {[%clk 0:02:13]} 22. f4 {[%clk 0:02:26]}  Bxd4 {[%clk 0:02:07]} 23. Rxd4 {[%clk 0:02:27]}  g6 {[%clk 0:02:01]} 24. g4 {[%clk 0:02:20]}  Rfe8 {[%clk 0:01:55]} 25. f5 {[%clk 0:02:18]}  Bxf5 {[%clk 0:01:53]} 26. gxf5 {[%clk 0:02:19]}  Rxe3 {[%clk 0:01:52]} 27. Rxd5 {[%clk 0:02:15]}  a6 {[%clk 0:01:48]} 28. f6 {[%clk 0:02:12]}  Rf3 {[%clk 0:01:47]} 29. Rd6 {[%clk 0:02:11]}  a5 {[%clk 0:01:47]} 30. Rhd1 {[%clk 0:02:09]}  h5 {[%clk 0:01:41]} 31. Rb6 {[%clk 0:02:03]}  b4 {[%clk 0:01:39]} 32. Kc2 {[%clk 0:01:56]}  bxc3 {[%clk 0:01:30]} 33. bxc3 {[%clk 0:01:57]}  Rc8 {[%clk 0:01:29]} 34. Rd3 {[%clk 0:01:51]}  Rf2+ {[%clk 0:01:27]} 35. Rd2 {[%clk 0:01:51]}  Rf3 {[%clk 0:01:26]} 36. Rd3 {[%clk 0:01:38]}  Rf2+ {[%clk 0:01:26]} 37. Kb3 {[%clk 0:01:39]}  a4+ {[%clk 0:01:18]} 38. Kxa4 {[%clk 0:01:25]}  Rxa2+ {[%clk 0:01:17]} 39. Kb3 {[%clk 0:01:24]}  Rxh2 {[%clk 0:01:17]} 40. c4 {[%clk 0:01:20]}  Rh1 {[%clk 0:01:11]} 41. Rb4 {[%clk 0:00:48]}  Rf1 {[%clk 0:01:02]} 42. Rd6 {[%clk 0:00:42]}  Rf3+ {[%clk 0:00:56]} 43. Ka4 {[%clk 0:00:40]}  Ra8+ {[%clk 0:00:53]} 44. Kb5 {[%clk 0:00:39]}  Rb8+ {[%clk 0:00:53]} 45. Rb6 {[%clk 0:00:31]}  Rxb6+ {[%clk 0:00:50]} 46. Kxb6 {[%clk 0:00:32]}  Rxf6+ {[%clk 0:00:50]} 47. Kb7 {[%clk 0:00:31]}  Rf1 {[%clk 0:00:33]} 48. c5 {[%clk 0:00:30]}  Rc1 {[%clk 0:00:34]} 49. c6 {[%clk 0:00:30]}  g5 {[%clk 0:00:32]} 50. Rb5 {[%clk 0:00:22]}  f6 {[%clk 0:00:28]} 51. c7 {[%clk 0:00:20]}  h4 {[%clk 0:00:28]} 52. Rb6 {[%clk 0:00:12]}  Rxc7+ {[%clk 0:00:25]} 53. Kxc7 {[%clk 0:00:13]}  Kf7 {[%clk 0:00:25]} 54. Kd6 {[%clk 0:00:13]}  g4 {[%clk 0:00:22]} 55. Rb4 {[%clk 0:00:12]}  f5 {[%clk 0:00:21]} 56. Ke5 {[%clk 0:00:12]}  Kg6 {[%clk 0:00:21]} 57. Kf4 {[%clk 0:00:12]}  h3 {[%clk 0:00:19]} 58. Rb6+ {[%clk 0:00:12]}  Kh5 {[%clk 0:00:19]} 59. Rb2 {[%clk 0:00:06]}  Kh4 {[%clk 0:00:16]} 60. Rb8 {[%clk 0:00:04]}  Kh5 {[%clk 0:00:11]} 61. Kxf5 {[%clk 0:00:03]}  Kh4 {[%clk 0:00:07]} 62. Kf4 {[%clk 0:00:03]}  Kh5 {[%clk 0:00:06]} 63. Rh8+ {[%clk 0:00:04]}  Kg6 {[%clk 0:00:06]} 64. Kxg4 {[%clk 0:00:05]}  Kg7 {[%clk 0:00:04]} 65. Rxh3 {[%clk 0:00:04]}  Kg6 {[%clk 0:00:05]} 66. Ra3 {[%clk 0:00:05]}  Kf6 {[%clk 0:00:05]} 67. Ra5 {[%clk 0:00:06]}  Ke7 {[%clk 0:00:05]} 68. Kf4 {[%clk 0:00:07]}  Kd6 {[%clk 0:00:06]} 69. Rb5 {[%clk 0:00:07]}  Kc6 {[%clk 0:00:07]} 70. Rh5 {[%clk 0:00:07]}  Kb6 {[%clk 0:00:07]} 71. Ke4 {[%clk 0:00:08]}  Kc6 {[%clk 0:00:07]} 72. Kd4 {[%clk 0:00:09]}  Kd7 {[%clk 0:00:08]} 73. Rh6 {[%clk 0:00:09]}  Ke7 {[%clk 0:00:07]} 74. Ke5 {[%clk 0:00:10]}  Kf7 {[%clk 0:00:08]} 75. Ra6 {[%clk 0:00:10]}  Kg7 {[%clk 0:00:09]} 76. Kf5 {[%clk 0:00:10]}  Kf7 {[%clk 0:00:10]} 77. Ra7+ {[%clk 0:00:10]}  Ke8 {[%clk 0:00:10]} 78. Kf6 {[%clk 0:00:10]}  Kd8 {[%clk 0:00:11]} 79. Rh7 {[%clk 0:00:11]}  Kc8 {[%clk 0:00:11]} 80. Ke6 {[%clk 0:00:11]}  Kb8 {[%clk 0:00:12]} 81. Kd6 {[%clk 0:00:12]}  Kc8 {[%clk 0:00:13]} 82. Rg7 {[%clk 0:00:12]}  Kd8 {[%clk 0:00:14]} 83. Rg8# {[%clk 0:00:12]} 1-0


[Site "https://www.chess.com"]

[Event "Titled Tuesday Blitz June 13 Early 2023"]
[White "Hartikainen, Jarmo"]
[Black "Omelja, Artem"]
[WhiteFideId "503134"]
[BlackFideId "14119846"]
[WhiteElo "2131"]
[BlackElo "2404"]
[Result "0-1"]
[Round "1"]
[TimeControl "180+2"]
[Date "2023.06.13"]
[WhiteClock "0:00:02"]
[BlackClock "0:00:51"]
[Board "209"]

1. e4 {[%clk 0:02:58]}  e5 {[%clk 0:02:46]} 2. Nf3 {[%clk 0:02:57]}  Nc6 {[%clk 0:02:46]} 3. Bc4 {[%clk 0:02:54]}  Bc5 {[%clk 0:02:42]} 4. c3 {[%clk 0:02:53]}  Nf6 {[%clk 0:02:36]} 5. d4 {[%clk 0:02:52]}  exd4 {[%clk 0:02:33]} 6. b4 {[%clk 0:02:51]}  Be7 {[%clk 0:01:54]} 7. e5 {[%clk 0:02:48]}  Ng4 {[%clk 0:01:51]} 8. cxd4 {[%clk 0:02:42]}  Bxb4+ {[%clk 0:01:50]} 9. Kf1 {[%clk 0:02:30]}  d5 {[%clk 0:01:46]} 10. Bd3 {[%clk 0:02:07]}  Be6 {[%clk 0:01:31]} 11. h3 {[%clk 0:02:04]}  Nh6 {[%clk 0:01:31]} 12. Bxh6 {[%clk 0:02:03]}  gxh6 {[%clk 0:01:30]} 13. Qc1 {[%clk 0:01:44]}  Qd7 {[%clk 0:01:26]} 14. Nc3 {[%clk 0:01:22]}  O-O-O {[%clk 0:01:21]} 15. Rb1 {[%clk 0:01:18]}  Ba5 {[%clk 0:01:11]} 16. Na4 {[%clk 0:00:58]}  Bb6 {[%clk 0:01:10]} 17. Nc5 {[%clk 0:00:51]}  Qe7 {[%clk 0:01:10]} 18. Nxe6 {[%clk 0:00:17]}  fxe6 {[%clk 0:01:06]} 19. Qb2 {[%clk 0:00:15]}  Rdf8 {[%clk 0:01:02]} 20. Ke2 {[%clk 0:00:15]}  Rhg8 {[%clk 0:00:53]} 21. Rhg1 {[%clk 0:00:13]}  Qf7 {[%clk 0:00:51]} 22. a4 {[%clk 0:00:10]}  Nxd4+ {[%clk 0:00:51]} 23. Nxd4 {[%clk 0:00:02]}  Qxf2+ {[%clk 0:00:51]} 0-1


[Site "https://www.chess.com"]

[Event "Titled Tuesday Blitz June 13 Early 2023"]
[White "Blackwhite017"]
[Black "Ismagilov, Damir"]
[BlackFideId "34199982"]
[WhiteElo "2113"]
[BlackElo "2104"]
[Result "1-0"]
[Round "1"]
[TimeControl "180+2"]
[Date "2023.06.13"]
[WhiteClock "0:00:07"]
[BlackClock "0:00:24"]
[Board "213"]

1. e4 {[%clk 0:02:58]}  c6 {[%clk 0:02:54]} 2. Nf3 {[%clk 0:02:58]}  d5 {[%clk 0:02:54]} 3. exd5 {[%clk 0:02:58]}  cxd5 {[%clk 0:02:54]} 4. Ne5 {[%clk 0:02:59]}  Nf6 {[%clk 0:02:48]} 5. d4 {[%clk 0:02:59]}  Nc6 {[%clk 0:02:48]} 6. c3 {[%clk 0:02:58]}  e6 {[%clk 0:02:48]} 7. Nd2 {[%clk 0:02:54]}  Bd6 {[%clk 0:02:39]} 8. f4 {[%clk 0:02:54]}  Nd7 {[%clk 0:02:32]} 9. Bd3 {[%clk 0:02:46]}  O-O {[%clk 0:02:32]} 10. O-O {[%clk 0:02:38]}  f5 {[%clk 0:02:30]} 11. Nxd7 {[%clk 0:02:18]}  Bxd7 {[%clk 0:02:27]} 12. Nf3 {[%clk 0:02:16]}  Be8 {[%clk 0:02:26]} 13. Re1 {[%clk 0:02:13]}  Rf6 {[%clk 0:02:06]} 14. Bd2 {[%clk 0:01:55]}  Bh5 {[%clk 0:02:05]} 15. Qe2 {[%clk 0:01:42]}  Qc7 {[%clk 0:02:02]} 16. g3 {[%clk 0:01:33]}  Re8 {[%clk 0:01:55]} 17. Qf2 {[%clk 0:01:32]}  Bxf3 {[%clk 0:01:55]} 18. Qxf3 {[%clk 0:01:32]}  Kf7 {[%clk 0:01:55]} 19. Re2 {[%clk 0:01:27]}  g6 {[%clk 0:01:54]} 20. Rae1 {[%clk 0:01:27]}  Ne7 {[%clk 0:01:49]} 21. h4 {[%clk 0:01:10]}  Ng8 {[%clk 0:01:45]} 22. Bc2 {[%clk 0:01:05]}  Kg7 {[%clk 0:01:30]} 23. Bb3 {[%clk 0:01:03]}  Re7 {[%clk 0:01:30]} 24. Rc1 {[%clk 0:00:45]}  Rf8 {[%clk 0:01:26]} 25. c4 {[%clk 0:00:45]}  dxc4 {[%clk 0:01:25]} 26. Bxc4 {[%clk 0:00:41]}  Qd7 {[%clk 0:01:17]} 27. Bc3 {[%clk 0:00:36]}  Nf6 {[%clk 0:01:15]} 28. Kg2 {[%clk 0:00:29]}  Rc8 {[%clk 0:01:14]} 29. Bb3 {[%clk 0:00:26]}  Kf7 {[%clk 0:00:59]} 30. Rce1 {[%clk 0:00:26]}  Ne4 {[%clk 0:00:56]} 31. Rxe4 {[%clk 0:00:25]}  fxe4 {[%clk 0:00:57]} 32. Rxe4 {[%clk 0:00:25]}  Bc7 {[%clk 0:00:36]} 33. Qe2 {[%clk 0:00:19]}  Rce8 {[%clk 0:00:36]} 34. d5 {[%clk 0:00:18]}  exd5 {[%clk 0:00:34]} 35. Rxe7+ {[%clk 0:00:17]}  Rxe7 {[%clk 0:00:35]} 36. Qd3 {[%clk 0:00:14]}  Qf5 {[%clk 0:00:25]} 37. Bxd5+ {[%clk 0:00:13]}  Ke8 {[%clk 0:00:26]} 38. Qc4 {[%clk 0:00:11]}  a6 {[%clk 0:00:20]} 39. a4 {[%clk 0:00:09]}  h5 {[%clk 0:00:18]} 40. Bxb7 {[%clk 0:00:09]}  Bxf4 {[%clk 0:00:16]} 41. Bc6+ {[%clk 0:00:04]}  Kf8 {[%clk 0:00:16]} 42. gxf4 {[%clk 0:00:04]}  Qg4+ {[%clk 0:00:16]} 43. Kf2 {[%clk 0:00:04]}  Qxh4+ {[%clk 0:00:17]} 44. Kg2 {[%clk 0:00:03]}  Qg4+ {[%clk 0:00:17]} 45. Kf2 {[%clk 0:00:03]}  Qh4+ {[%clk 0:00:10]} 46. Kg2 {[%clk 0:00:04]}  g5 {[%clk 0:00:05]} 47. Bb4 {[%clk 0:00:04]}  Qg4+ {[%clk 0:00:06]} 48. Kf2 {[%clk 0:00:04]}  Qh4+ {[%clk 0:00:06]} 49. Kg2 {[%clk 0:00:04]}  gxf4 {[%clk 0:00:07]} 50. Bxe7+ {[%clk 0:00:04]}  Kxe7 {[%clk 0:00:08]} 51. Qe4+ {[%clk 0:00:04]}  Kf6 {[%clk 0:00:08]} 52. Qd4+ {[%clk 0:00:03]}  Ke7 {[%clk 0:00:08]} 53. Qe5+ {[%clk 0:00:03]}  Kf8 {[%clk 0:00:09]} 54. Qd6+ {[%clk 0:00:03]}  Kg7 {[%clk 0:00:09]} 55. Qe5+ {[%clk 0:00:03]}  Kf8 {[%clk 0:00:09]} 56. Qd6+ {[%clk 0:00:03]}  Kg7 {[%clk 0:00:10]} 57. Qe5+ {[%clk 0:00:03]}  Kh6 {[%clk 0:00:10]} 58. Qe6+ {[%clk 0:00:03]}  Kh7 {[%clk 0:00:11]} 59. Be4+ {[%clk 0:00:03]}  Kg7 {[%clk 0:00:12]} 60. Qg6+ {[%clk 0:00:02]}  Kf8 {[%clk 0:00:12]} 61. Qf5+ {[%clk 0:00:02]}  Ke7 {[%clk 0:00:13]} 62. Qe5+ {[%clk 0:00:02]}  Kf7 {[%clk 0:00:11]} 63. Bd5+ {[%clk 0:00:02]}  Kg6 {[%clk 0:00:12]} 64. Qe6+ {[%clk 0:00:02]}  Kg7 {[%clk 0:00:11]} 65. Qe5+ {[%clk 0:00:01]}  Kh6 {[%clk 0:00:11]} 66. Qe6+ {[%clk 0:00:02]}  Kg7 {[%clk 0:00:11]} 67. Qe5+ {[%clk 0:00:02]}  Qf6 {[%clk 0:00:11]} 68. Qxf6+ {[%clk 0:00:02]}  Kxf6 {[%clk 0:00:12]} 69. Kf3 {[%clk 0:00:02]}  Ke5 {[%clk 0:00:13]} 70. Bb7 {[%clk 0:00:02]}  h4 {[%clk 0:00:14]} 71. Bxa6 {[%clk 0:00:03]}  h3 {[%clk 0:00:14]} 72. Bf1 {[%clk 0:00:03]}  h2 {[%clk 0:00:14]} 73. Bg2 {[%clk 0:00:04]}  Kd4 {[%clk 0:00:13]} 74. b4 {[%clk 0:00:04]}  Kc4 {[%clk 0:00:13]} 75. b5 {[%clk 0:00:05]}  Kc5 {[%clk 0:00:14]} 76. Kxf4 {[%clk 0:00:05]}  Kb6 {[%clk 0:00:14]} 77. Bh1 {[%clk 0:00:05]}  Ka5 {[%clk 0:00:14]} 78. Kg3 {[%clk 0:00:05]}  Kxa4 {[%clk 0:00:15]} 79. b6 {[%clk 0:00:06]}  Kb5 {[%clk 0:00:16]} 80. b7 {[%clk 0:00:06]}  Ka6 {[%clk 0:00:17]} 81. b8=Q {[%clk 0:00:07]}  Ka5 {[%clk 0:00:18]} 82. Qb2 {[%clk 0:00:06]}  Ka4 {[%clk 0:00:19]} 83. Qxh2 {[%clk 0:00:06]}  Ka5 {[%clk 0:00:20]} 84. Qg2 {[%clk 0:00:07]}  Ka6 {[%clk 0:00:21]} 85. Kf2 {[%clk 0:00:08]}  Ka5 {[%clk 0:00:22]} 86. Ke3 {[%clk 0:00:08]}  Ka4 {[%clk 0:00:23]} 87. Kd3 {[%clk 0:00:09]}  Ka5 {[%clk 0:00:23]} 88. Kc4 {[%clk 0:00:10]}  Ka4 {[%clk 0:00:24]} 89. Qa2# {[%clk 0:00:07]} 1-0


[Site "https://www.chess.com"]

[Event "Titled Tuesday Blitz June 13 Early 2023"]
[White "Arencibia Monduy, Antonio"]
[Black "Philippe, Guillaume"]
[WhiteFideId "3507939"]
[BlackFideId "36048763"]
[WhiteElo "2552"]
[BlackElo "2387"]
[Result "1-0"]
[Round "1"]
[TimeControl "180+2"]
[Date "2023.06.13"]
[WhiteClock "0:00:08"]
[BlackClock "0:00:20"]
[Board "214"]

1. e4 {[%clk 0:02:59]}  e5 {[%clk 0:02:54]} 2. Bc4 {[%clk 0:02:58]}  Nf6 {[%clk 0:02:53]} 3. d3 {[%clk 0:02:58]}  c6 {[%clk 0:02:53]} 4. Nf3 {[%clk 0:02:58]}  d5 {[%clk 0:02:52]} 5. Bb3 {[%clk 0:02:58]}  Bd6 {[%clk 0:02:52]} 6. O-O {[%clk 0:02:57]}  h6 {[%clk 0:02:50]} 7. Re1 {[%clk 0:02:55]}  O-O {[%clk 0:02:43]} 8. Nbd2 {[%clk 0:02:43]}  Bg4 {[%clk 0:02:34]} 9. h3 {[%clk 0:02:38]}  Bh5 {[%clk 0:02:34]} 10. Nf1 {[%clk 0:02:37]}  Re8 {[%clk 0:02:34]} 11. Ng3 {[%clk 0:02:37]}  Bg6 {[%clk 0:02:34]} 12. Nh4 {[%clk 0:02:34]}  Nxe4 {[%clk 0:02:24]} 13. Nxg6 {[%clk 0:02:15]}  Nxg3 {[%clk 0:02:24]} 14. Qg4 {[%clk 0:01:42]}  fxg6 {[%clk 0:02:23]} 15. Qxg6 {[%clk 0:01:33]}  Nd7 {[%clk 0:02:19]} 16. Qxd6 {[%clk 0:01:06]}  Nf5 {[%clk 0:02:13]} 17. Qg6 {[%clk 0:01:05]}  Qf6 {[%clk 0:02:08]} 18. Qxf6 {[%clk 0:01:03]}  Nxf6 {[%clk 0:02:09]} 19. c3 {[%clk 0:00:55]}  Rad8 {[%clk 0:02:05]} 20. Bd2 {[%clk 0:00:54]}  Kh7 {[%clk 0:02:04]} 21. Re2 {[%clk 0:00:52]}  e4 {[%clk 0:02:01]} 22. Bc2 {[%clk 0:00:49]}  Nd6 {[%clk 0:01:53]} 23. Rae1 {[%clk 0:00:44]}  g6 {[%clk 0:01:53]} 24. Bf4 {[%clk 0:00:42]}  exd3 {[%clk 0:01:37]} 25. Bxd3 {[%clk 0:00:36]}  Nde4 {[%clk 0:01:33]} 26. f3 {[%clk 0:00:36]}  Nc5 {[%clk 0:01:32]} 27. Re7+ {[%clk 0:00:35]}  Kg8 {[%clk 0:01:27]} 28. Bxg6 {[%clk 0:00:34]}  Rxe7 {[%clk 0:01:03]} 29. Rxe7 {[%clk 0:00:34]}  Rd7 {[%clk 0:01:02]} 30. Rxd7 {[%clk 0:00:33]}  Nfxd7 {[%clk 0:01:00]} 31. Bxh6 {[%clk 0:00:34]}  Na4 {[%clk 0:01:00]} 32. Bc1 {[%clk 0:00:32]}  Ne5 {[%clk 0:01:00]} 33. Bc2 {[%clk 0:00:32]}  Nb6 {[%clk 0:00:59]} 34. Kf2 {[%clk 0:00:28]}  Kf7 {[%clk 0:00:59]} 35. f4 {[%clk 0:00:28]}  Nec4 {[%clk 0:00:55]} 36. g4 {[%clk 0:00:29]}  c5 {[%clk 0:00:54]} 37. b3 {[%clk 0:00:29]}  Nd6 {[%clk 0:00:53]} 38. Be3 {[%clk 0:00:26]}  Nd7 {[%clk 0:00:50]} 39. Kf3 {[%clk 0:00:22]}  Nb5 {[%clk 0:00:50]} 40. Bd2 {[%clk 0:00:20]}  d4 {[%clk 0:00:47]} 41. c4 {[%clk 0:00:20]}  Nd6 {[%clk 0:00:43]} 42. g5 {[%clk 0:00:20]}  b5 {[%clk 0:00:41]} 43. cxb5 {[%clk 0:00:19]}  Nxb5 {[%clk 0:00:42]} 44. h4 {[%clk 0:00:19]}  c4 {[%clk 0:00:31]} 45. bxc4 {[%clk 0:00:18]}  Na3 {[%clk 0:00:31]} 46. Bd3 {[%clk 0:00:17]}  Nc5 {[%clk 0:00:31]} 47. Ke2 {[%clk 0:00:11]}  Na4 {[%clk 0:00:22]} 48. h5 {[%clk 0:00:11]}  Nb2 {[%clk 0:00:19]} 49. g6+ {[%clk 0:00:10]}  Kg7 {[%clk 0:00:19]} 50. f5 {[%clk 0:00:10]}  Naxc4 {[%clk 0:00:17]} 51. h6+ {[%clk 0:00:10]}  Kf6 {[%clk 0:00:17]} 52. h7 {[%clk 0:00:09]}  Kg7 {[%clk 0:00:12]} 53. f6+ {[%clk 0:00:10]}  Kxf6 {[%clk 0:00:12]} 54. h8=Q+ {[%clk 0:00:10]}  Ke6 {[%clk 0:00:13]} 55. Bxc4+ {[%clk 0:00:08]}  Nxc4 {[%clk 0:00:14]} 56. Qg8+ {[%clk 0:00:09]}  Kd6 {[%clk 0:00:14]} 57. Qxc4 {[%clk 0:00:09]}  Ke5 {[%clk 0:00:15]} 58. Qf7 {[%clk 0:00:08]}  a5 {[%clk 0:00:16]} 59. Kd3 {[%clk 0:00:08]}  Kd6 {[%clk 0:00:16]} 60. Bf4+ {[%clk 0:00:08]}  Kc5 {[%clk 0:00:17]} 61. Qc4+ {[%clk 0:00:07]}  Kb6 {[%clk 0:00:18]} 62. Bc7+ {[%clk 0:00:06]}  Kb7 {[%clk 0:00:17]} 63. Bd6 {[%clk 0:00:07]}  a4 {[%clk 0:00:18]} 64. Qb5+ {[%clk 0:00:07]}  Kc8 {[%clk 0:00:18]} 65. Qc6+ {[%clk 0:00:07]}  Kd8 {[%clk 0:00:19]} 66. Qc7+ {[%clk 0:00:07]}  Ke8 {[%clk 0:00:20]} 67. Qe7# {[%clk 0:00:08]} 1-0


[Site "https://www.chess.com"]

[Event "Titled Tuesday Blitz June 13 Early 2023"]
[White "Lisjak, Zlatko"]
[Black "Malyi, Viacheslav"]
[WhiteFideId "14502186"]
[BlackFideId "14123983"]
[WhiteElo "1998"]
[BlackElo "2291"]
[Result "0-1"]
[Round "1"]
[TimeControl "180+2"]
[Date "2023.06.13"]
[WhiteClock "0:00:00"]
[BlackClock "0:01:03"]
[Board "215"]

1. d4 {[%clk 0:02:57]}  Nf6 {[%clk 0:02:59]} 2. Nc3 {[%clk 0:02:56]}  e6 {[%clk 0:02:57]} 3. Bf4 {[%clk 0:02:54]}  d5 {[%clk 0:02:44]} 4. e3 {[%clk 0:02:52]}  a6 {[%clk 0:02:41]} 5. Qd2 {[%clk 0:02:47]}  c5 {[%clk 0:02:38]} 6. O-O-O {[%clk 0:02:44]}  Nc6 {[%clk 0:02:37]} 7. a3 {[%clk 0:02:33]}  Bd7 {[%clk 0:02:31]} 8. Kb1 {[%clk 0:02:22]}  Rc8 {[%clk 0:02:29]} 9. Nf3 {[%clk 0:02:18]}  cxd4 {[%clk 0:02:27]} 10. exd4 {[%clk 0:02:17]}  Qa5 {[%clk 0:02:26]} 11. Na2 {[%clk 0:02:00]}  Qxd2 {[%clk 0:02:24]} 12. Bxd2 {[%clk 0:01:54]}  Bd6 {[%clk 0:02:18]} 13. Bd3 {[%clk 0:01:48]}  O-O {[%clk 0:02:17]} 14. Rhe1 {[%clk 0:01:42]}  Rfd8 {[%clk 0:02:17]} 15. Nc3 {[%clk 0:01:32]}  Be8 {[%clk 0:02:16]} 16. Bg5 {[%clk 0:01:28]}  Be7 {[%clk 0:02:14]} 17. Re2 {[%clk 0:01:12]}  h6 {[%clk 0:02:13]} 18. Bd2 {[%clk 0:00:55]}  b5 {[%clk 0:02:13]} 19. Rde1 {[%clk 0:00:36]}  Bd6 {[%clk 0:02:13]} 20. Na2 {[%clk 0:00:32]}  Ra8 {[%clk 0:01:46]} 21. Nb4 {[%clk 0:00:23]}  Rdb8 {[%clk 0:01:45]} 22. Nxc6 {[%clk 0:00:20]}  Bxc6 {[%clk 0:01:46]} 23. Ne5 {[%clk 0:00:20]}  Bxe5 {[%clk 0:01:38]} 24. Rxe5 {[%clk 0:00:17]}  Nd7 {[%clk 0:01:38]} 25. R5e2 {[%clk 0:00:16]}  a5 {[%clk 0:01:39]} 26. b3 {[%clk 0:00:12]}  a4 {[%clk 0:01:37]} 27. b4 {[%clk 0:00:11]}  Nb6 {[%clk 0:01:38]} 28. f4 {[%clk 0:00:10]}  Nc4 {[%clk 0:01:37]} 29. Bc1 {[%clk 0:00:08]}  Nd6 {[%clk 0:01:33]} 30. g4 {[%clk 0:00:07]}  Ne4 {[%clk 0:01:31]} 31. f5 {[%clk 0:00:05]}  Re8 {[%clk 0:01:29]} 32. fxe6 {[%clk 0:00:03]}  Rxe6 {[%clk 0:01:30]} 33. Kb2 {[%clk 0:00:03]}  Rae8 {[%clk 0:01:29]} 34. h3 {[%clk 0:00:01]}  Nd6 {[%clk 0:01:09]} 35. Bf4 {[%clk 0:00:00]}  Nc4+ {[%clk 0:01:03]} 0-1


[Site "https://www.chess.com"]

[Event "Titled Tuesday Blitz June 13 Early 2023"]
[White "Maluco_do_Natal_00"]
[Black "Shevtchenko, Olesya"]
[BlackFideId "24131890"]
[WhiteElo "2082"]
[BlackElo "2003"]
[Result "0-1"]
[Round "1"]
[TimeControl "180+2"]
[Date "2023.06.13"]
[WhiteClock "0:00:00"]
[BlackClock "0:02:08"]
[Board "217"]

1. e4 {[%clk 0:03:00]}  c6 {[%clk 0:02:58]} 2. d4 {[%clk 0:03:00]}  d5 {[%clk 0:02:59]} 3. Nc3 {[%clk 0:03:00]}  dxe4 {[%clk 0:03:00]} 4. Nxe4 {[%clk 0:03:01]}  Bf5 {[%clk 0:03:00]} 5. Ng3 {[%clk 0:03:01]}  Bg6 {[%clk 0:03:01]} 6. h4 {[%clk 0:03:02]}  h6 {[%clk 0:03:01]} 7. h5 {[%clk 0:03:02]}  Bh7 {[%clk 0:03:01]} 8. Nf3 {[%clk 0:03:02]}  e6 {[%clk 0:03:02]} 9. Bd3 {[%clk 0:03:02]}  Bxd3 {[%clk 0:03:02]} 10. Qxd3 {[%clk 0:03:03]}  Nf6 {[%clk 0:03:02]} 11. Bd2 {[%clk 0:03:04]}  c5 {[%clk 0:03:03]} 12. O-O-O {[%clk 0:02:49]}  Nc6 {[%clk 0:03:03]} 13. Bf4 {[%clk 0:02:23]}  Nd5 {[%clk 0:02:53]} 14. Bd2 {[%clk 0:02:10]}  Nb6 {[%clk 0:02:49]} 15. Bc3 {[%clk 0:01:40]}  Qd5 {[%clk 0:02:47]} 16. dxc5 {[%clk 0:01:33]}  Bxc5 {[%clk 0:02:42]} 17. Qxd5 {[%clk 0:01:31]}  Nxd5 {[%clk 0:02:41]} 18. Bxg7 {[%clk 0:01:23]}  Rh7 {[%clk 0:02:41]} 19. Ne4 {[%clk 0:01:21]}  Rxg7 {[%clk 0:02:35]} 20. Nxc5 {[%clk 0:01:20]}  Rxg2 {[%clk 0:02:35]} 21. Rhg1 {[%clk 0:01:02]}  Rxg1 {[%clk 0:02:35]} 22. Rxg1 {[%clk 0:01:01]}  O-O-O {[%clk 0:02:34]} 23. Rg7 {[%clk 0:00:57]}  Nf4 {[%clk 0:02:32]} 24. c3 {[%clk 0:00:37]}  b6 {[%clk 0:02:31]} 25. Ne4 {[%clk 0:00:26]}  f5 {[%clk 0:02:29]} 26. Ng3 {[%clk 0:00:16]}  Nd3+ {[%clk 0:02:28]} 27. Kc2 {[%clk 0:00:14]}  Nxf2 {[%clk 0:02:29]} 28. Nd4 {[%clk 0:00:08]}  Nxd4+ {[%clk 0:02:26]} 29. cxd4 {[%clk 0:00:09]}  Rxd4 {[%clk 0:02:25]} 30. Rxa7 {[%clk 0:00:09]}  Rg4 {[%clk 0:02:22]} 31. Ne2 {[%clk 0:00:06]}  Rc4+ {[%clk 0:02:18]} 32. Kb3 {[%clk 0:00:06]}  Rc7 {[%clk 0:02:16]} 33. Ra8+ {[%clk 0:00:06]}  Kb7 {[%clk 0:02:16]} 34. Rh8 {[%clk 0:00:06]}  Ng4 {[%clk 0:02:11]} 35. Nf4 {[%clk 0:00:05]}  e5 {[%clk 0:02:10]} 36. Nd5 {[%clk 0:00:05]}  Rd7 {[%clk 0:02:09]} 37. Nb4 {[%clk 0:00:03]}  f4 {[%clk 0:02:08]} 38. Re8 {[%clk 0:00:02]}  f3 {[%clk 0:02:08]} 39. Rf8 {[%clk 0:00:02]}  f2 {[%clk 0:02:09]} 40. Nc2 {[%clk 0:00:00]}  e4 {[%clk 0:02:08]} 0-1


[Site "https://www.chess.com"]